bitfinex-derivatives/quotes_ETHF0:USTF0_20250530
["timestamp","ask_amount","ask_price","bid_price","bid_amount"]
[1748589618547,2.71351625,2624.9,2624.8,4.87365]
[1748589618750,2.21381625,2624.9,2624.8,10.77365]
[1748589620759,0.00571625,2625.1,2624.9,0.7616]
[1748589620957,0.00571625,2625.1,2624.9,1.9753]
[1748589622059,0.00571625,2625.1,2625.0,0.76159]
[1748589622357,0.00571625,2625.1,2625.0,2.57689]
[1748589622657,0.00571625,2625.1,2625.0,7.57689]
[1748589623561,0.00571625,2625.1,2625.0,2.57689]
[1748589623860,0.00571625,2625.1,2625.0,5.48049]
[1748589627561,1.90321,2626.1,2625.0,5.48049]
[1748589627562,3.2078,2626.9,2626.8,0.76107]
[1748589627756,3.826,2626.9,2626.8,4.87307]
[1748589628054,0.6467,2627.0,2626.9,0.76104]
[1748589628258,0.6467,2627.0,2626.8,4.112]
[1748589628259,0.06993857,2627.1,2627.0,0.76101]
[1748589628654,3.2078,2627.2,2627.0,0.76099]
[1748589628849,1.258,2627.1,2627.0,0.76099]
[1748589629361,1.258,2627.1,2626.8,4.11771625]
[1748589629559,1.258,2627.1,2626.9,0.76102]
[1748589630356,1.258,2627.1,2626.8,4.11771625]
[1748589630660,1.258,2627.1,2626.9,0.76101]
[1748589631265,1.258,2627.1,2626.8,4.11771625]
[1748589631459,0.6408,2627.0,2626.8,4.87876625]
[1748589631763,1.2369,2626.9,2626.8,4.11771625]
[1748589631959,1.99794,2626.9,2626.8,0.00571625]
[1748589632156,1.2369,2626.9,2626.8,4.11671625]
[1748589634965,5.20574,2626.9,2626.8,4.11671625]
[1748589635163,10.20574,2626.9,2626.8,0.00571625]
[1748589635355,0.76111,2626.7,2626.6,4.111]
[1748589636463,4.4447,2626.9,2626.6,4.111]
[1748589636764,0.76109,2626.7,2626.6,4.111]
[1748589641166,0.76112,2626.6,2626.4,0.00571625]
[1748589641366,1.40652,2626.6,2626.5,4.218]
[1748589643067,0.6454,2626.6,2626.5,4.97915]
[1748589643764,0.76107,2626.8,2626.5,4.97915]
[1748589644072,1.3329,2626.7,2626.6,0.76111]
[1748589645376,3.2078,2626.9,2626.8,0.76107]
[1748589645975,4.4788,2626.9,2626.8,4.218]
[1748589647679,4.4788,2626.9,2626.8,4.97907]
[1748589648180,4.4788,2626.9,2626.8,4.218]
[1748589648769,4.4788,2626.9,2626.8,4.97907]
[1748589649572,4.4788,2626.9,2626.8,4.97189384]
[1748589650372,4.4788,2626.9,2626.8,4.21082384]
[1748589650572,4.4788,2626.9,2626.8,4.97189384]
[1748589650977,4.54873857,2626.9,2626.8,4.97189384]
[1748589651180,3.27773857,2626.9,2626.8,4.97189384]
[1748589653173,0.06993857,2626.9,2626.8,4.97189384]
[1748589654673,0.06993857,2626.9,2626.8,6.25719384]
[1748589655175,0.06993857,2626.9,2626.8,4.97189384]
[1748589655678,0.06993857,2626.9,2626.8,4.21082384]
[1748589656679,1.32583857,2626.9,2626.7,0.6688]
[1748589656874,2.08688857,2626.9,2626.8,4.218]
[1748589657085,5.29468857,2626.9,2626.8,4.218]
[1748589657979,4.53363857,2626.9,2626.8,4.97907]
[1748589660381,4.53363857,2626.9,2626.8,4.218]
[1748589660583,5.29467857,2626.9,2626.8,4.218]
[1748589661283,4.53363857,2626.9,2626.8,4.97907]
[1748589662685,0.06993857,2626.9,2626.8,4.97907]
[1748589672390,2.16187857,2626.9,2626.8,4.218]
[1748589672889,0.76107,2626.8,2626.6,0.6362]
[1748589673078,1.3309,2626.7,2626.6,1.39732]
[1748589673282,2.092,2626.7,2626.6,4.093]
[1748589673483,1.592,2626.7,2626.6,4.093]
[1748589673785,2.79630732,2626.7,2626.6,4.093]
[1748589674489,3.27773857,2626.9,2626.8,0.76107]
[1748589674689,4.48211397,2626.9,2626.8,0.76107]
[1748589674889,5.24315397,2626.9,2626.7,0.76108]
[1748589675092,4.03877857,2626.9,2626.7,0.76108]
[1748589675288,3.27773857,2626.9,2626.6,4.093]
[1748589675484,3.21351625,2627.3,2627.2,0.76095]
[1748589675786,0.00571625,2627.3,2627.2,4.85395]
[1748589676489,3.2078,2627.9,2627.8,0.76078]
[1748589676696,3.2078,2627.9,2627.8,4.85378]
[1748589677696,3.2078,2627.9,2627.8,4.093]
[1748589678091,3.2078,2627.9,2627.3,0.6247]
[1748589678299,1.2552,2627.8,2627.4,4.093]
[1748589678690,1.2552,2627.8,2627.6,0.76082]
[1748589680195,2.01598,2627.8,2627.5,0.76085]
[1748589680398,1.2552,2627.8,2627.6,0.76084]
[1748589680796,2.01598,2627.8,2627.5,0.76085]
[1748589680998,2.01598,2627.8,2627.5,0.76084]
[1748589681500,1.2552,2627.8,2627.6,0.76084]
[1748589681694,1.2552,2627.8,2627.7,0.76081]
[1748589682395,3.2078,2627.9,2627.8,0.76078]
[1748589682603,1.3105,2627.7,2627.4,4.093]
[1748589682802,2.07132,2627.7,2627.4,4.85387]
[1748589682996,2.07132,2627.7,2627.5,0.76086]
[1748589683191,1.3105,2627.7,2627.5,0.76086]
[1748589683897,2.07132,2627.7,2627.5,0.76086]
[1748589684402,1.3105,2627.7,2627.6,0.76084]
[1748589684600,1.3105,2627.7,2627.5,0.76085]
[1748589684804,1.3105,2627.7,2627.6,0.76084]
[1748589685199,2.27164189,2629.5,2627.9,3.2078]
[1748589685400,1.85913559,2629.4,2628.0,24.6039]
[1748589685599,0.6608,2629.4,2629.3,3.2078]
[1748589685799,0.6608,2629.4,2629.3,7.2998]
[1748589688104,0.00570483,2629.6,2629.3,7.2998]
[1748589688306,0.00570483,2629.6,2629.4,0.76031]
[1748589689108,0.00570483,2629.6,2629.5,0.76029]
[1748589689314,0.00570483,2629.6,2629.4,0.7603]
[1748589689502,0.00570483,2629.6,2629.3,7.2998]
[1748589689703,0.00570483,2629.6,2629.4,0.7603]
[1748589689904,0.00570483,2629.6,2629.5,0.76029]
[1748589690408,1.33150483,2629.6,2629.5,0.76029]
[1748589690909,0.00570483,2629.6,2629.5,0.76029]
[1748589692510,0.00570483,2629.6,2629.5,1.39149]
[1748589693814,0.00570483,2629.6,2629.5,5.48149]
[1748589694712,0.0756434,2629.6,2629.5,5.48149]
[1748589695303,1.89971,2630.9,2629.7,1.90054]
[1748589695508,2.592,2630.6,2630.4,3.2078]
[1748589695906,38.363,2631.7,2630.4,3.2078]
[1748589695907,3.023219,2633.0,2631.0,3.2078]
[1748589696101,1.3244,2632.2,2632.1,0.75954]
[1748589696311,1.3244,2632.2,2632.1,8.05634]
[1748589696809,0.71633857,2632.3,2632.2,0.75951]
[1748589697011,0.06993857,2632.3,2632.2,0.75951]
[1748589697516,0.06993857,2632.3,2632.2,9.84851]
[1748589697714,0.00568963,2632.4,2632.3,0.75948]
[1748589697909,0.00568963,2632.4,2632.3,2.06898]
[1748589698214,0.00568963,2632.4,2632.3,1.3095]
[1748589698615,0.00568963,2632.4,2632.1,3.2078]
[1748589698806,0.00568963,2632.4,2632.3,4.089]
[1748589699211,0.00568963,2632.4,2632.3,4.84848]
[1748589699412,1.8538,2633.2,2632.3,9.089]
[1748589699610,2.61302,2633.2,2633.1,3.2078]
[1748589699815,2.61302,2633.2,2633.1,7.2958]
[1748589700017,1.8538,2633.2,2633.1,7.2958]
[1748589700215,1.2074,2633.2,2633.1,7.2958]
[1748589700411,1.96662,2633.2,2633.1,7.2958]
[1748589700916,1.2074,2633.2,2633.1,7.2958]
[1748589701315,0.6362,2633.5,2633.1,7.2958]
[1748589701614,0.75904,2633.9,2633.5,0.75913]
[1748589701817,1.3273,2633.8,2633.6,4.088]
[1748589702125,2.08635,2633.8,2633.7,3.2078]
[1748589703220,2.08635,2633.8,2633.7,7.3908]
[1748589703530,0.75913,2633.5,2633.4,0.00570483]
[1748589705348,5.75913,2633.5,2633.4,0.00570483]
[1748589705850,0.75916,2633.4,2633.3,3.2078]
[1748589706052,2.73006,2633.4,2633.3,3.2078]
[1748589706239,0.75928,2633.0,2632.9,3.2078]
[1748589708146,2.27164189,2635.1,2634.3,0.7589]
[1748589708347,1.2345,2634.6,2634.3,8.1477]
[1748589708740,0.6654,2635.0,2634.3,8.1477]
[1748589708945,1.2345,2634.9,2634.3,8.1477]
[1748589709948,0.6187,2635.3,2634.3,8.1477]
[1748589709949,0.75869,2635.1,2634.3,8.1477]
[1748589710144,0.75871,2635.0,2634.3,8.1477]
[1748589710417,0.75869,2635.1,2634.3,8.1477]
[1748589710560,1.2377,2635.2,2634.3,13.1477]
[1748589710751,0.6627,2635.6,2634.3,12.3888]
[1748589711050,0.75861,2635.3,2635.2,3.2078]
[1748589711455,0.75861,2635.3,2635.2,7.3878]
[1748589711651,0.75861,2635.3,2635.2,3.2078]
[1748589712247,5.75861,2635.3,2635.2,3.2078]
[1748589712442,0.7587,2635.0,2634.9,4.18]
[1748589713439,0.75869,2635.1,2634.9,7.3878]
[1748589713645,0.7587,2635.0,2634.9,7.3878]
[1748589714053,0.6627,2635.6,2634.9,7.3878]
[1748589714360,0.75861,2635.3,2635.2,3.2078]
[1748589714556,0.75861,2635.3,2635.2,7.3868]
[1748589716058,3.2078,2637.0,2635.3,1.89653]
[1748589716357,1.2709,2637.3,2636.9,3.2078]
[1748589716557,2.02894,2637.3,2637.2,3.2078]
[1748589716748,0.75807,2637.2,2637.1,4.179]
[1748589716956,1.2709,2637.2,2637.1,4.178]
[1748589717158,0.75807,2637.2,2637.1,4.178]
[1748589717355,0.75812,2637.0,2636.9,3.2078]
[1748589717552,0.75812,2637.0,2636.9,7.5998]
[1748589717859,1.2709,2637.5,2636.9,7.5998]
[1748589718058,1.2709,2637.5,2637.3,3.2078]
[1748589718358,0.7581,2637.1,2637.0,3.2078]
[1748589718546,0.75804,2637.3,2637.2,4.392]
[1748589719940,0.75804,2637.3,2636.8,0.00569314]
[1748589719941,0.75815,2636.9,2636.8,0.00569314]
[1748589720148,0.75815,2636.9,2636.8,4.39569314]
[1748589721355,1.2671,2637.2,2637.1,0.7581]
[1748589721543,3.8334,2637.6,2636.8,5.72779314]
[1748589721743,1.2671,2637.5,2637.3,3.2078]
[1748589721943,0.75801,2637.4,2637.3,3.2078]
[1748589722139,0.75801,2637.4,2637.3,7.5978]
[1748589722950,0.75815,2636.9,2636.8,3.21349314]
[1748589723142,0.75815,2636.9,2636.8,7.60249314]
[1748589724230,0.78137084,2636.9,2636.8,7.60249314]
[1748589724425,0.78137084,2636.9,2636.8,4.39469314]
[1748589724922,0.85130941,2636.9,2636.8,4.39469314]
[1748589725121,0.09315941,2636.9,2636.8,7.60249314]
[1748589725526,0.09315941,2636.9,2636.8,8.36067314]
[1748589727535,0.09315941,2636.9,2636.8,7.60249314]
[1748589727826,0.09315941,2636.9,2636.8,13.36067314]
[1748589728033,0.06993857,2636.9,2636.8,13.36067314]
[1748589728230,0.6585,2638.2,2636.8,13.36067314]
[1748589728231,0.75795,2637.6,2636.8,12.60249314]
[1748589728436,0.75801,2637.4,2637.3,3.2078]
[1748589728627,3.2078,2638.1,2637.3,7.5958]
[1748589728832,1.275,2638.4,2638.0,3.2078]
[1748589729032,0.75778,2638.2,2638.1,4.388]
[1748589729423,0.1569,2638.2,2638.1,4.388]
[1748589729624,0.91468,2638.2,2638.1,5.6739]
[1748589730129,0.75781,2638.1,2638.0,3.2078]
[1748589730332,0.75781,2638.1,2638.0,8.8817]
[1748589730636,0.1569,2638.2,2638.0,8.8817]
[1748589730826,0.75781,2638.1,2638.0,8.8817]
[1748589731434,0.75781,2638.1,2638.0,7.5958]
[1748589731635,0.9147,2638.2,2638.0,8.9188]
[1748589731936,0.1569,2638.2,2638.0,8.9188]
[1748589732434,0.1569,2638.2,2638.0,3.2078]
[1748589732632,0.1569,2638.2,2638.1,6.46781]
[1748589732837,3.55253767,2639.5,2638.4,1.89431]
[1748589733030,3.55253767,2639.5,2638.8,3.2078]
[1748589733031,1.17092734,2639.4,2638.8,3.2078]
[1748589733228,1.17092734,2639.3,2639.1,3.2078]
[1748589733432,0.34473767,2639.5,2638.9,1.323]
[1748589733634,0.75749,2639.2,2639.1,3.2078]
[1748589734138,0.75752,2639.1,2639.0,4.387]
[1748589734435,0.75752,2639.1,2639.0,4.386]
[1748589734643,0.75758,2638.9,2638.8,3.2078]
[1748589736440,0.75767,2638.6,2638.5,3.2078]
[1748589736631,0.75767,2638.6,2638.5,7.5938]
[1748589737537,1.93021192,2638.6,2638.5,7.5938]
[1748589738343,0.7577,2638.5,2638.4,4.385]
[1748589738537,2.50344192,2638.5,2638.3,4.385]
[1748589738840,1.93027192,2638.4,2638.3,4.385]
[1748589739140,3.26117192,2638.4,2638.3,4.385]
[1748589739340,1.93027192,2638.4,2638.3,4.385]
[1748589741136,0.75775,2638.3,2638.2,3.2078]
[1748589741342,1.93301866,2638.3,2638.2,7.5928]
[1748589741640,3.20651866,2638.3,2638.2,7.5928]
[1748589743531,8.20651866,2638.3,2638.2,4.385]
[1748589744637,0.75784,2638.0,2637.9,3.21349314]
[1748589744840,1.93310866,2638.0,2637.9,0.00569314]
[1748589745342,1.94068935,2638.0,2637.9,0.00569314]
[1748589745541,1.94068935,2638.0,2637.9,3.21349314]
[1748589746837,1.94068935,2638.0,2637.9,4.43729314]
[1748589747040,1.94068935,2638.0,2637.9,3.21349314]
[1748589747342,1.94068935,2638.0,2637.9,0.00569314]
[1748589747544,4.21233124,2638.0,2637.9,0.00569314]
[1748589747742,4.21233124,2638.0,2637.3,3.2078]
[1748589747743,0.75801,2637.4,2637.3,3.2078]
[1748589747938,0.75801,2637.4,2637.3,7.5798]
[1748589748245,1.94085935,2637.4,2637.3,7.5798]
[1748589748943,1.94085935,2637.4,2637.3,8.8036]
[1748589750142,1.94085935,2637.4,2637.3,7.5798]
[1748589750843,1.18284935,2637.4,2637.3,7.5798]
[1748589751047,0.68284935,2637.4,2637.3,8.33784]
[1748589751236,0.67715621,2637.4,2637.3,13.33784]
[1748589751435,0.17955621,2637.4,2637.3,8.33784]
[1748589751646,0.17955621,2637.4,2637.3,13.33784]
[1748589753335,0.17955621,2637.4,2637.3,8.96584]
[1748589753542,0.75794,2637.7,2637.5,0.75797]
[1748589753839,0.75794,2637.7,2637.6,4.4365]
[1748589754138,0.75794,2637.7,2637.6,3.2078]
[1748589754335,0.75794,2637.7,2637.6,7.5798]
[1748589757240,0.75804,2637.3,2637.2,8.8085]
[1748589758050,0.06993857,2637.4,2637.3,0.75804]
[1748589758248,0.06993857,2637.4,2637.3,1.99194]
[1748589758451,0.82794857,2637.4,2637.3,1.2339]
[1748589758649,0.06993857,2637.4,2637.3,1.2339]
[1748589758846,0.06993857,2637.4,2637.3,1.99194]
[1748589759046,0.06993857,2637.4,2637.3,11.36394]
[1748589760649,0.06993857,2637.4,2637.3,12.26394]
[1748589760848,0.06993857,2637.4,2637.3,11.5059]
[1748589761048,0.06993857,2637.4,2637.3,12.26394]
[1748589761748,0.06993857,2637.4,2637.3,1.2339]
[1748589761950,0.82794857,2637.4,2637.3,4.372]
[1748589763647,5.28621,2639.1,2639.0,0.75755]
[1748589763849,3.023219,2639.1,2639.0,8.33735]
[1748589764050,1.2283,2639.6,2639.2,0.75748]
[1748589764353,1.2283,2639.6,2639.4,3.2078]
[1748589764648,1.10214767,2639.5,2639.4,3.2078]
[1748589765045,0.75747,2639.3,2639.2,0.00569314]
[1748589765759,5.75747,2639.3,2639.2,0.00569314]
[1748589766056,6.97497,2639.3,2639.2,0.00569314]
[1748589767051,9.4253,2639.3,2638.4,3.2078]
[1748589767251,0.6072,2639.7,2638.4,3.2078]
[1748589767252,2.65670951,2641.1,2639.2,7.31498418]
[1748589767550,5.25963864,2643.0,2641.1,1.89238]
[1748589767752,1.2228,2642.8,2642.0,0.75669]
[1748589767952,1.2228,2642.8,2642.7,3.2078]
[1748589768550,1.29847731,2642.8,2642.7,3.2078]
[1748589768858,0.07567731,2642.8,2642.7,3.2078]
[1748589769350,0.07567731,2642.8,2642.7,3.96429]
[1748589769957,0.07567731,2642.8,2642.7,3.2078]
[1748589770355,0.07567731,2642.8,2642.7,3.96429]
[1748589770550,0.07567731,2642.8,2642.7,5.19759]
[1748589770854,0.07567731,2642.8,2642.7,10.48059]
[1748589771252,7.31e-06,2642.8,2642.7,15.48059]
[1748589771447,7.31e-06,2642.8,2642.7,10.48059]
[1748589771650,7.31e-06,2642.8,2642.7,15.48059]
[1748589771859,1.324,2643.9,2642.7,14.7241]
[1748589772059,1.324,2643.9,2643.7,3.2078]
[1748589772261,2.08017,2643.9,2643.7,3.2078]
[1748589772460,6.324,2643.9,2643.7,3.2078]
[1748589772757,1.324,2643.9,2643.7,3.2078]
[1748589774761,1.324,2643.9,2643.4,3.2078]
[1748589774762,0.75625,2643.6,2643.4,3.2078]
[1748589774956,1.2634,2643.5,2643.0,5.281]
[1748589775157,2.01966,2643.5,2643.4,3.2078]
[1748589776360,6.2634,2643.5,2643.1,3.2078]
[1748589776559,0.75644,2642.9,2642.8,3.2078]
[1748589776760,0.75652,2642.6,2642.5,3.2134815]
[1748589777455,8.4878,2643.4,2642.5,3.2134815]
[1748589777456,3.2078,2643.8,2642.5,13.4934815]
[1748589777661,1.3297,2643.9,2643.6,3.2078]
[1748589777861,3.2078,2643.7,2642.5,0.0056815]
[1748589778165,3.2078,2642.9,2642.5,0.0056815]
[1748589778462,0.75652,2642.7,2642.5,0.0056815]
[1748589778763,1.3297,2642.8,2642.5,0.0056815]
[1748589778764,3.96432,2642.6,2642.5,0.0056815]
[1748589778961,5.29402,2642.6,2642.5,0.0056815]
[1748589780462,3.96432,2642.6,2642.5,0.0056815]
[1748589781254,0.75672,2641.9,2641.8,5.279]
[1748589781560,1.89167,2642.1,2641.2,5.279]
[1748589781757,3.96469,2641.3,2641.2,5.279]
[1748589781957,0.75693,2641.2,2641.0,1.3083]
[1748589782157,1.275,2641.8,2641.1,5.279]
[1748589782357,0.0056815,2641.7,2641.4,3.2078]
[1748589782559,0.0056815,2641.7,2641.5,1.3083]
[1748589782755,0.7624615,2641.7,2641.5,1.3083]
[1748589782962,0.0056815,2641.7,2641.2,0.0056815]
[1748589783170,0.75689,2641.4,2641.3,5.279]
[1748589783365,0.75689,2641.3,2641.2,0.0056815]
[1748589783662,1.98409,2641.3,2641.2,0.0056815]
[1748589783966,1.89241,2641.1,2640.0,3.2078]
[1748589784265,0.75721,2640.2,2640.1,0.0757547]
[1748589784565,0.75721,2640.2,2640.1,4.7e-06]
[1748589784772,5.75721,2640.2,2640.1,4.7e-06]
[1748589784962,0.75727,2640.0,2639.9,6.2e-06]
[1748589785154,0.75739,2639.6,2639.2,2.09293]
[1748589785358,0.75744,2639.4,2639.3,6.5385]
[1748589785558,1.2272,2639.9,2639.3,6.5385]
[1748589785777,1.2272,2639.9,2639.4,3.2078]
[1748589786068,0.75737,2639.7,2639.5,1.2056]
[1748589786260,0.75738,2639.6,2639.5,1.2056]
[1748589786767,0.75741,2639.5,2639.4,0.0056815]
[1748589787356,5.75741,2639.5,2639.4,0.0056815]
[1748589788161,5.75741,2639.5,2639.4,1.5e-06]
[1748589789071,0.75747,2639.3,2639.2,1.5e-06]
[1748589789370,3.96527,2639.3,2639.2,1.5e-06]
[1748589789670,8.96527,2639.3,2639.2,1.5e-06]
[1748589790063,1.89375,2639.2,2638.4,8.4898]
[1748589790262,0.75768,2638.6,2638.4,8.4898]
[1748589790467,0.7577,2638.5,2638.4,5.282]
[1748589791167,1.327,2638.7,2638.2,5.2876815]
[1748589791472,0.75775,2638.3,2638.2,0.0056815]
[1748589791962,0.94725,2638.3,2638.2,0.0056815]
[1748589792175,2.26855,2638.3,2638.2,0.0056815]
[1748589792470,8.4052,2638.3,2637.4,8.4908]
[1748589792666,0.75795,2637.7,2637.4,6.5994]
[1748589792865,0.75796,2637.6,2637.4,7.3574]
[1748589793073,3.2078,2638.0,2637.4,7.3574]
[1748589793074,1.3213,2637.9,2637.4,6.5994]
[1748589793368,0.75794,2637.7,2637.4,7.3574]
[1748589793565,1.3213,2637.9,2637.4,6.5994]
[1748589793969,0.75783,2638.1,2637.4,9.8072]
[1748589794274,0.75785,2638.0,2637.7,0.75791]
[1748589794465,4.7186,2638.3,2637.8,1.3164]
[1748589794672,4.7186,2638.3,2637.9,0.75785]
[1748589794969,4.7186,2638.3,2637.8,1.3164]
[1748589794970,4.7186,2638.3,2637.8,2.07429]
[1748589795169,0.75783,2638.1,2637.8,1.3164]
[1748589795364,4.7186,2638.3,2637.8,1.3164]
[1748589795567,0.75785,2638.0,2637.8,1.3164]
[1748589795875,4.7186,2638.3,2637.5,5.284]
[1748589796168,0.75796,2637.6,2637.5,5.284]
[1748589796563,0.758,2637.5,2637.3,5.28778764]
[1748589796867,0.75801,2637.4,2637.3,5.28778764]
[1748589797067,2.09211,2637.4,2637.3,5.28778764]
[1748589797262,5.29991,2637.4,2637.3,0.00378764]
[1748589798266,3.2078,2637.4,2637.3,0.00378764]
[1748589798463,1.96269,2637.9,2637.3,3.21158764]
[1748589798669,0.75791,2637.8,2637.6,0.75794]
[1748589798969,0.7579,2637.8,2637.7,1.2568]
[1748589800480,3.2078,2638.2,2637.7,1.2568]
[1748589800672,0.1895,2638.3,2637.7,1.2568]
[1748589800980,0.75779,2638.2,2638.0,0.75784]
[1748589801276,0.75783,2638.1,2637.9,6.06086]
[1748589801472,0.1895,2638.3,2637.6,3.2078]
[1748589801673,0.75801,2637.4,2636.9,3.2078]
[1748589801867,0.75801,2637.4,2636.7,8.5108]
[1748589802071,3.2078,2637.6,2637.1,3.2078]
[1748589802271,3.2078,2637.6,2637.5,0.75798]
[1748589802566,0.06993857,2637.9,2637.7,0.75792]
[1748589802774,0.06993857,2637.9,2637.5,3.96576]
[1748589802969,0.06993857,2637.9,2637.5,0.75797]
[1748589803168,0.06993857,2637.9,2637.3,5.30678764]
[1748589803169,0.75791,2637.8,2637.6,0.75793]
[1748589803369,0.75795,2637.7,2637.5,0.75797]
[1748589803578,0.75792,2637.8,2637.6,0.75794]
[1748589803876,0.06993857,2637.9,2637.6,6.06094]
[1748589804075,0.75793,2637.7,2637.6,5.303]
[1748589804475,0.75793,2637.7,2637.3,0.00378764]
[1748589804476,0.75798,2637.5,2637.3,0.76181764]
[1748589804677,0.75798,2637.5,2637.3,0.00378764]
[1748589804879,0.75801,2637.4,2637.3,0.00378764]
[1748589805274,4.4748,2637.8,2637.3,0.00378764]
[1748589805575,1.8949,2637.6,2634.8,2.95787706]
[1748589805872,5.0,2637.8,2634.8,2.95787706]
[1748589805873,3.2078,2637.0,2635.9,1.89612]
[1748589806080,0.75823,2636.7,2636.2,3.2078]
[1748589806281,0.7582,2636.8,2636.5,0.75825]
[1748589806481,3.2078,2637.0,2636.2,3.2078]
[1748589806682,0.75821,2636.8,2636.3,5.304]
[1748589806873,0.75821,2636.8,2636.6,0.75823]
[1748589807271,0.0056815,2636.9,2636.3,5.304]
[1748589807579,0.0056815,2636.9,2636.4,0.75828]
[1748589807778,0.0056815,2636.9,2636.3,5.304]
[1748589807981,0.75823,2636.7,2636.4,0.7583]
[1748589808176,0.75823,2636.7,2636.5,0.75827]
[1748589808383,0.75821,2636.8,2636.3,5.304]
[1748589808578,0.75822,2636.7,2636.5,0.75825]
[1748589808784,0.75824,2636.6,2636.4,6.06229]
[1748589809283,1.2250815,2636.9,2636.5,0.75826]
[1748589809284,0.75823,2636.7,2636.5,0.75826]
[1748589809483,0.75823,2636.7,2636.5,6.06226]
[1748589809876,0.0056815,2636.9,2636.5,5.304]
[1748589810185,0.7638615,2636.9,2636.6,0.75822]
[1748589810387,0.75819,2636.8,2636.6,0.75822]
[1748589810580,0.75822,2636.7,2636.5,6.06226]
[1748589811083,0.75824,2636.6,2636.4,0.75828]
[1748589811274,0.75824,2636.6,2636.5,5.304]
[1748589811480,1.2182815,2636.9,2636.5,5.304]
[1748589811780,0.75824,2636.6,2636.5,6.06225]
[1748589811981,0.75824,2636.6,2636.5,5.304]
[1748589812175,1.2182815,2636.9,2636.2,3.2078]
[1748589812381,3.2078,2635.7,2634.0,9.47825]
[1748589812581,3.2078,2634.8,2634.7,0.75879]
[1748589812780,0.00569292,2635.1,2635.0,0.7587]
[1748589814479,0.00569292,2635.1,2635.0,5.7587]
[1748589815087,0.00569292,2635.1,2635.0,0.7587]
[1748589815586,0.00569292,2635.1,2635.0,6.0647]
[1748589816289,0.00569292,2635.1,2635.0,5.306]
[1748589816687,0.00569292,2635.1,2635.0,6.0647]
[1748589817387,0.00569292,2635.1,2635.0,0.7587]
[1748589817586,0.00569292,2635.1,2633.9,4.4592]
[1748589817785,0.00569292,2635.1,2634.0,1.2862]
[1748589817786,3.2078,2634.6,2634.0,1.2862]
[1748589817990,3.2078,2634.6,2634.5,0.75885]
[1748589818191,2.7078,2634.6,2634.5,3.45885]
[1748589818492,2.7078,2634.6,2634.5,8.76485]
[1748589818493,2.2078,2634.6,2634.5,8.76485]
[1748589818789,2.2078,2634.6,2634.5,8.76585]
[1748589819988,2.96662,2634.6,2634.5,5.307]
[1748589820186,2.96662,2634.6,2634.4,0.75887]
[1748589820391,3.15632,2634.6,2634.5,5.307]
[1748589821595,2.3975,2634.6,2634.5,5.307]
[1748589821787,2.3975,2634.6,2634.5,6.06585]
[1748589821984,0.1897,2634.6,2634.5,6.06585]
[1748589822189,3.2078,2634.9,2634.8,0.75876]
[1748589822787,3.2078,2634.9,2634.8,3.45876]
[1748589823192,8.2078,2634.9,2634.0,3.2078]
[1748589823387,3.2078,2634.1,2634.0,0.75899]
[1748589824490,1.2994,2634.8,2634.0,5.75899]
[1748589824683,3.2078,2634.5,2634.4,0.75888]
[1748589824883,3.2078,2634.5,2634.4,5.308]
[1748589824884,3.96665,2634.5,2634.4,5.308]
[1748589825089,3.2078,2634.5,2634.4,6.06688]
[1748589826186,3.96665,2634.5,2634.4,5.308]
[1748589826381,3.96665,2634.5,2634.1,1.3197]
[1748589826382,3.2078,2634.5,2634.1,1.3197]
[1748589826596,3.2078,2634.2,2634.1,0.75896]
[1748589826792,3.2078,2634.2,2634.1,6.06796]
[1748589826998,3.2078,2634.5,2634.4,0.75888]
[1748589827188,3.2078,2634.5,2634.4,6.06788]
[1748589827395,3.2078,2634.5,2634.4,5.75888]
[1748589827597,0.1897,2634.6,2634.5,0.75885]
[1748589827890,0.1897,2634.6,2634.5,1.98185]
[1748589829702,0.1897,2634.6,2634.5,7.46685]
[1748589829997,3.2078,2634.8,2634.7,0.75879]
[1748589830195,3.21349292,2635.1,2635.0,0.7587]
[1748589830496,3.21349292,2635.1,2635.0,6.2437]
[1748589832891,3.97218292,2635.1,2635.0,5.485]
[1748589833093,5.18998292,2635.1,2635.0,5.485]
[1748589833291,4.43129292,2635.1,2635.0,6.2437]
[1748589834297,3.21349292,2635.1,2635.0,6.2437]
[1748589835490,4.47889292,2635.1,2635.0,6.2437]
[1748589835690,3.21349292,2635.1,2635.0,6.2437]
[1748589836601,0.00569292,2635.1,2635.0,6.2437]
[1748589836791,3.2078,2635.8,2635.1,0.75867]
[1748589836991,3.96627,2635.8,2635.7,0.7585]
[1748589837200,5.29007,2635.8,2635.7,0.7585]
[1748589837386,4.5316,2635.8,2635.7,0.7585]
[1748589838194,4.5316,2635.8,2635.6,6.24251]
[1748589838389,5.29009,2635.8,2635.7,0.7585]
[1748589838998,3.2078,2635.8,2635.7,0.7585]
[1748589839893,4.5316,2635.8,2635.7,0.7585]
[1748589840093,4.5316,2635.8,2635.6,5.484]
[1748589840402,4.5316,2635.8,2635.7,0.7585]
[1748589841293,0.75851,2635.7,2635.4,2.7]
[1748589841497,0.7585,2635.8,2635.7,5.484]
[1748589841691,0.7585,2635.8,2635.0,1.2844]
[1748589841692,4.19937325,2635.8,2635.5,0.75855]
[1748589841894,0.99157325,2635.7,2635.6,0.75853]
[1748589842192,0.7585,2635.7,2635.2,3.18102]
[1748589842392,3.2078,2635.7,2635.2,1.2844]
[1748589842604,3.96631,2635.7,2635.5,0.75853]
[1748589842898,3.2078,2635.7,2635.6,6.24253]
[1748589843397,0.00569292,2636.0,2635.9,0.75844]
[1748589844400,0.00569292,2636.0,2635.9,3.45844]
[1748589845904,0.00569292,2636.0,2635.9,0.75844]
[1748589846095,0.76412292,2636.0,2635.8,0.75845]